fUSD/lending_fUSD_20260108
["ID","MTS","AMOUNT","RATE_DAILY","PERIOD"]
[400911372,1767861040157,-150.0,0.00013288,2]
[400911374,1767861040167,-500.0,0.00013288,2]
[400911375,1767861040177,-206.22263087,0.00013288,2]
[400911377,1767861040187,-1173.0,0.00013288,2]
[400911380,1767861040197,-312.84,0.00013297,2]
[400911381,1767861040207,-600.0,0.00013297,2]
[400911383,1767861040217,-150.0,0.00013342,2]
[400911385,1767861040227,-500.0,0.00013342,2]
[400911387,1767861040237,-1173.0,0.00013342,2]
[400911389,1767861040248,-150.0,0.00013397,2]
[400911391,1767861040258,-500.0,0.00013397,2]
[400911393,1767861040267,-1173.0,0.00013397,2]
[400911395,1767861040277,-1619.28,0.00013398,2]
[400911397,1767861040288,-500.0,0.00013403,2]
[400911399,1767861040303,-1377.13522971,0.00013452,2]
[400911401,1767861040312,-578.20924308,0.00013452,2]
[400911403,1767861040323,-151.0,0.00013452,2]
[400911406,1767861040335,-500.0,0.00013452,2]
[400911408,1767861040347,-1500.0,0.00013452,2]
[400911410,1767861040357,-500.0,0.00013452,2]
[400911412,1767861040368,-2000.0,0.00013452,2]
[400911414,1767861040378,-1500.0,0.00013452,2]
[400911416,1767861040389,-574.12855637,0.00013452,2]
[400911418,1767861040399,-500.0,0.00013452,2]
[400911420,1767861040410,-2000.0,0.00013452,2]
[400911422,1767861040420,-1500.0,0.00013452,2]
[400911424,1767861040430,-500.0,0.00013452,2]
[400911425,1767861040440,-2000.0,0.00013452,2]
[400911427,1767861040451,-1500.0,0.00013452,2]
[400911429,1767861040461,-500.0,0.00013452,2]
[400911431,1767861040471,-2000.0,0.00013452,2]
[400911434,1767861040481,-1500.0,0.00013452,2]
[400911435,1767861040491,-500.0,0.00013452,2]
[400911438,1767861040503,-500.0,0.00013452,2]
[400911439,1767861040520,-2000.0,0.00013452,2]
[400911441,1767861040530,-1500.0,0.00013452,2]
[400911443,1767861040540,-500.0,0.00013452,2]
[400911445,1767861040550,-500.0,0.00013452,2]
[400911447,1767861040560,-2000.0,0.00013452,2]
[400911449,1767861040570,-1500.0,0.00013452,2]
[400911451,1767861040580,-500.0,0.00013452,2]
[400911453,1767861040590,-500.0,0.00013452,2]
[400911455,1767861040600,-2000.0,0.00013452,2]
[400911457,1767861040610,-1500.0,0.00013452,2]
[400911459,1767861040620,-500.0,0.00013452,2]
[400911461,1767861040631,-500.0,0.00013452,2]
[400911463,1767861040641,-2000.0,0.00013452,2]
[400911466,1767861040652,-1500.0,0.00013452,2]
[400911468,1767861040663,-500.0,0.00013452,2]
[400911470,1767861040674,-500.0,0.00013452,2]
[400911472,1767861040684,-2000.0,0.00013452,2]
[400911474,1767861040696,-1500.0,0.00013452,2]
[400911476,1767861040706,-500.0,0.00013452,2]
[400911478,1767861040716,-500.0,0.00013452,2]
[400911480,1767861040726,-2000.0,0.00013452,2]
[400911482,1767861040737,-1500.0,0.00013452,2]
[400911484,1767861040748,-500.0,0.00013452,2]
[400911486,1767861040758,-2000.0,0.00013452,2]
[400911488,1767861040768,-500.0,0.00013452,2]
[400911490,1767861040777,-500.0,0.00013452,2]
[400911492,1767861040787,-500.0,0.00013452,2]
[400911494,1767861040797,-500.0,0.00013452,2]
[400911496,1767861040807,-322.6107,0.00013452,2]
[400911498,1767861040817,-250.0,0.00013452,2]
[400911500,1767861040827,-250.0,0.00013452,2]
[400911502,1767861040837,-321.91220307,0.00013452,2]
[400911504,1767861040847,-151.0,0.00013452,2]
[400911506,1767861040857,-500.0,0.00013452,2]
[400911508,1767861040867,-500.0,0.00013452,2]
[400911510,1767861040877,-500.0,0.00013452,2]
[400911512,1767861040886,-500.0,0.00013452,2]
[400911513,1767861040896,-498.61515312,0.00013452,2]
[400911515,1767861040905,-151.0,0.00013452,2]
[400911517,1767861040915,-156.587,0.00013452,2]
[400911519,1767861040925,-162.380719,0.00013452,2]
[400911521,1767861040936,-155.23859657,0.00013452,2]
[400911523,1767861040947,-209.40437684,0.00013452,2]
[400911525,1767861040956,-500.0,0.00013452,2]
[400911527,1767861040967,-500.0,0.00013452,2]
[400911529,1767861040976,-500.0,0.00013452,2]
[400911531,1767861040986,-270.73180541,0.00013452,2]
[400911533,1767861040995,-500.0,0.00013452,2]
[400911535,1767861041005,-500.0,0.00013452,2]
[400911537,1767861041015,-500.0,0.00013452,2]
[400911539,1767861041025,-500.0,0.00013452,2]
[400911541,1767861041035,-500.0,0.00013452,2]
[400911543,1767861041045,-500.0,0.00013452,2]
[400911545,1767861041055,-500.0,0.00013452,2]
[400911547,1767861041064,-500.0,0.00013452,2]
[400911549,1767861041074,-500.0,0.00013452,2]
[400911551,1767861041084,-500.0,0.00013452,2]
[400911553,1767861041094,-500.0,0.00013452,2]
[400911555,1767861041104,-500.0,0.00013452,2]
[400911557,1767861041114,-500.0,0.00013452,2]
[400911559,1767861041124,-500.0,0.00013452,2]
[400911561,1767861041134,-622.14655061,0.00013452,2]
[400911563,1767861041144,-500.0,0.00013452,2]
[400911565,1767861041154,-500.0,0.00013452,2]
[400911567,1767861041163,-500.0,0.00013452,2]
[400911569,1767861041172,-169.1378307,0.00013452,2]
[400911571,1767861041182,-620.0,0.00013452,2]
[400911573,1767861041192,-189.0183163,0.00013452,2]
[400911575,1767861041203,-500.0,0.00013452,2]
[400911577,1767861041213,-1173.0,0.00013452,2]
[400911579,1767861041222,-787.25604664,0.000135,2]
[400911581,1767861041232,-500.0,0.00013507,2]
[400911583,1767861041242,-1173.0,0.00013507,2]
[400911585,1767861041252,-500.0,0.00013534,2]
[400911587,1767861041263,-500.0,0.00013562,2]
[400911589,1767861041272,-1173.0,0.00013562,2]
[400911591,1767861041285,-166.66,0.00013593,2]
[400911593,1767861041294,-1455.4475772,0.00013598,2]
[400911595,1767861041304,-4349.44887958,0.00013598,2]
[400911597,1767861041313,-500.0,0.00013616,2]
[400911599,1767861041323,-1173.0,0.00013616,2]
[400911601,1767861041333,-164.07,0.00013667,2]
[400911603,1767861041343,-500.0,0.00013671,2]
[400911605,1767861041352,-1173.0,0.00013671,2]
[400911607,1767861041362,-1619.28,0.00013672,2]
[400911609,1767861041372,-500.0,0.00013677,2]
[400911611,1767861041381,-260.06429066,0.00013698,2]
[400911613,1767861041391,-500.0,0.00013698,2]
[400911615,1767861041401,-498.15528863,0.00013698,2]
[400911617,1767861041411,-500.0,0.00013698,2]
[400911619,1767861041421,-502.50439874,0.00013698,2]
[400911621,1767861041430,-500.0,0.00013698,2]
[400911623,1767861041439,-198.43935064,0.00013698,2]
[400911625,1767861041459,-500.0,0.00013698,2]
[400911627,1767861041470,-500.0,0.00013698,2]
[400911629,1767861041481,-184.55624416,0.00013698,2]
[400911631,1767861041491,-514.77,0.00013698,2]
[400911633,1767861041504,-514.77,0.00013698,2]
[400911635,1767861041516,-514.77,0.00013698,2]
[400911638,1767861041527,-514.77,0.00013698,2]
[400911640,1767861041536,-514.77,0.00013698,2]
[400911641,1767861041547,-500.0,0.00013698,2]
[400911644,1767861041557,-500.0,0.00013698,2]
[400911646,1767861041567,-345.3210989,0.00013698,2]
[400911648,1767861041578,-500.0,0.00013698,2]
[400911649,1767861041588,-500.0,0.00013698,2]
[400911652,1767861041598,-500.0,0.00013698,2]
[400911654,1767861041609,-500.0,0.00013698,2]
[400911655,1767861041619,-500.0,0.00013698,2]
[400911658,1767861041629,-500.0,0.00013698,2]
[400911659,1767861041639,-429.10137339,0.00013698,2]
[400911662,1767861041649,-500.0,0.00013698,2]
[400911663,1767861041659,-500.0,0.00013698,2]
[400911666,1767861041669,-500.0,0.00013698,2]
[400911668,1767861041678,-500.0,0.00013698,2]
[400911670,1767861041688,-500.0,0.00013698,2]
[400911672,1767861041698,-522.48563019,0.00013698,2]
[400911674,1767861041708,-500.0,0.00013698,2]
[400911676,1767861041717,-500.0,0.00013698,2]
[400911678,1767861041727,-500.0,0.00013698,2]
[400911679,1767861041737,-500.0,0.00013698,2]
[400911682,1767861041750,-500.0,0.00013698,2]
[400911684,1767861041761,-500.0,0.00013698,2]
[400911686,1767861041771,-363.73176274,0.00013698,2]
[400911688,1767861041781,-500.0,0.00013698,2]
[400911690,1767861041791,-500.0,0.00013698,2]
[400911692,1767861041801,-517.44328219,0.00013698,2]
[400911694,1767861041810,-500.0,0.00013698,2]
[400911696,1767861041820,-500.0,0.00013698,2]
[400911698,1767861041830,-500.0,0.00013698,2]
[400911700,1767861041839,-211.60955392,0.00013698,2]
[400911701,1767861041849,-500.0,0.00013726,2]
[400911703,1767861041859,-1173.0,0.00013726,2]
[400911705,1767861041869,-209.91190666,0.00013781,2]
[400911707,1767861041879,-1173.0,0.00013781,2]
[400911709,1767861041888,-769.41,0.00013815,2]
[400911711,1767861041898,-1173.0,0.00013836,2]
[400911713,1767861041908,-15064.07141285,0.00013855,2]
[400911715,1767861041918,-1173.0,0.0001389,2]
[400911717,1767861041928,-17139.32837656,0.00013919,2]
[400911719,1767861041937,-1173.0,0.00013945,2]
[400911721,1767861041947,-1619.28,0.00013946,2]
[400911723,1767861041957,-457.10042703,0.00013951,2]
[400911725,1767861041967,-1173.0,0.00014,2]
[400911727,1767861041976,-157.22325972,0.00014,2]
[400911729,1767861041987,-595.37131296,0.00014,2]
[400911731,1767861041996,-151.0,0.00014,2]
[400911733,1767861042007,-217.15233878,0.00014,2]
[400911735,1767861042018,-501.86313919,0.00014,2]
[400911737,1767861042028,-200.0,0.00014,2]
[400911739,1767861042037,-166.66,0.00014001,2]
[400911741,1767861042047,-1173.0,0.00014055,2]
[400911743,1767861042057,-433.0,0.0001408,2]
[400911745,1767861042067,-1173.0,0.0001411,2]
[400911747,1767861042076,-1173.0,0.00014164,2]
[400911749,1767861042086,-1173.0,0.00014219,2]
[400911751,1767861042096,-1619.28,0.0001422,2]
[400911753,1767861042106,-2351.0,0.00014264,2]
[400911755,1767861042116,-587.0,0.00014264,2]
[400911757,1767861042126,-587.0,0.00014264,2]
[400911759,1767861042136,-1173.0,0.00014274,2]
[400911761,1767861042146,-2351.0,0.00014317,2]
[400911763,1767861042156,-1173.0,0.00014329,2]
[400911765,1767861042166,-1173.0,0.00014383,2]
[400911767,1767861042175,-166.66,0.00014409,2]
[400911769,1767861042186,-1196.41648618,0.00014438,2]
[400911771,1767861042195,-151.0,0.00014441,2]
[400911773,1767861042204,-151.0,0.00014451,2]
[400911775,1767861042214,-151.0,0.00014465,2]
[400911777,1767861042224,-1619.28,0.00014494,2]
[400911780,1767861042234,-9999.99,0.00014504,2]
[400911782,1767861042243,-151.0,0.00014506,2]
[400911785,1767861042254,-151.0,0.00014506,2]
[400911788,1767861042263,-151.0,0.00014506,2]
[400911791,1767861042273,-151.0,0.00014506,2]
[400911794,1767861042284,-151.0,0.00014506,2]
[400911797,1767861042295,-769.41,0.00014506,2]
[400911799,1767861042306,-15064.07141285,0.00014529,2]
[400911801,1767861042316,-617.40005154,0.00014548,2]
[400911803,1767861042328,-151.0,0.00014548,2]
[400911805,1767861042337,-225.18697532,0.00014548,2]
[400911807,1767861042347,-17139.32837656,0.00014583,2]
[400911809,1767861042357,-1754.27554981,0.00014621,2]
[400911811,1767861042367,-173.84870699,0.00014621,2]
[400911813,1767861042376,-514.77,0.00014638,2]
[400911815,1767861042386,-161.90897483,0.00014763,2]
[400911817,1767861042395,-167.54885661,0.00014763,2]
[400911819,1767861042405,-536.85793514,0.00014763,2]
[400911821,1767861042414,-500.0,0.00014763,2]
[400911823,1767861042425,-500.0,0.00014763,2]
[400911824,1767861042439,-164.12535237,0.00014763,2]
[400911825,1767861042449,-500.22325222,0.00014763,2]
[400911826,1767861042460,-500.0,0.00014763,2]
[400911827,1767861042470,-500.0,0.00014763,2]
[400911828,1767861042479,-169.78239766,0.00014763,2]
[400911829,1767861042489,-500.0,0.00014763,2]
[400911830,1767861042499,-224.70175616,0.00014763,2]
[400911831,1767861042509,-500.0,0.00014763,2]
[400911832,1767861042519,-500.0,0.00014763,2]
[400911833,1767861042529,-500.0,0.00014763,2]
[400911834,1767861042539,-500.0,0.00014763,2]
[400911835,1767861042549,-500.0,0.00014763,2]
[400911836,1767861042559,-500.0,0.00014763,2]
[400911837,1767861042569,-500.0,0.00014763,2]
[400911839,1767861042580,-500.0,0.00014763,2]
[400911841,1767861042590,-500.0,0.00014763,2]
[400911843,1767861042599,-486.22003068,0.00014763,2]
[400911845,1767861042609,-500.0,0.00014763,2]
[400911847,1767861042618,-500.0,0.00014763,2]
[400911849,1767861042628,-165.70843486,0.00014763,2]
[400911851,1767861042638,-163.32215659,0.00014763,2]
[400911853,1767861042648,-166.27119183,0.00014763,2]
[400911855,1767861042657,-216.92080784,0.00014763,2]
[400911857,1767861042667,-500.0,0.00014763,2]
[400911859,1767861042677,-500.0,0.00014763,2]
[400911861,1767861042686,-500.0,0.00014763,2]
[400911863,1767861042696,-500.0,0.00014763,2]
[400911865,1767861042706,-500.0,0.00014763,2]
[400911867,1767861042715,-500.0,0.00014763,2]
[400911869,1767861042725,-552.68956986,0.00014763,2]
[400911871,1767861042734,-500.0,0.00014763,2]
[400911873,1767861042744,-500.0,0.00014763,2]
[400911875,1767861042754,-162.50130895,0.00014763,2]
[400911877,1767861042764,-500.0,0.00014763,2]
[400911879,1767861042773,-500.29238726,0.00014763,2]
[400911881,1767861042783,-500.0,0.00014763,2]
[400911883,1767861042793,-500.0,0.00014763,2]
[400911885,1767861042803,-500.0,0.00014763,2]
[400911887,1767861042812,-500.0,0.00014763,2]
[400911889,1767861042822,-500.0,0.00014763,2]
[400911891,1767861042832,-500.0,0.00014763,2]
[400911893,1767861042842,-500.0,0.00014763,2]
[400911895,1767861042851,-169.07455586,0.00014763,2]
[400911897,1767861042861,-500.0,0.00014763,2]
[400911899,1767861042871,-500.0,0.00014763,2]
[400911901,1767861042881,-1619.28,0.00014768,2]
[400911903,1767861042890,-334.5472959,0.00014821,2]
[400911905,1767861042900,-642.94,0.00014821,2]
[400911907,1767861042909,-164.07,0.0001491,2]
[400911909,1767861042919,-500.0,0.00014958,2]
[400911911,1767861042928,-150.0,0.00014958,2]
[400911913,1767861042938,-500.0,0.00014958,2]
[400911915,1767861042947,-500.0,0.00014958,2]
[400911917,1767861042958,-150.0,0.00014958,2]
[400911919,1767861042967,-150.0,0.00014958,2]
[400911921,1767861042978,-150.0,0.00014958,2]
[400911923,1767861042989,-150.0,0.00014958,2]
[400911925,1767861043002,-150.0,0.00014958,2]
[400911927,1767861043011,-150.0,0.00014958,2]
[400911929,1767861043021,-500.0,0.00014958,2]
[400911931,1767861043031,-500.0,0.00014958,2]
[400911933,1767861043041,-150.6048441,0.00014958,2]
[400911935,1767861043051,-500.0,0.00015013,2]
[400911937,1767861043062,-233.66248833,0.00015013,2]
[400911939,1767861043072,-500.0,0.00015013,2]
[400911941,1767861043082,-500.0,0.00015013,2]
[400911943,1767861043092,-150.0,0.00015013,2]
[400911945,1767861043102,-150.0,0.00015013,2]
[400911947,1767861043111,-150.0,0.00015013,2]
[400911949,1767861043120,-150.0,0.00015013,2]
[400911951,1767861043130,-150.0,0.00015013,2]
[400911953,1767861043142,-150.0,0.00015013,2]
[400911955,1767861043152,-500.0,0.00015013,2]
[400911957,1767861043161,-500.0,0.00015013,2]
[400911959,1767861043171,-500.0,0.00015041,2]
[400911961,1767861043180,-1619.28,0.00015042,2]
[400911963,1767861043190,-500.0,0.00015068,2]
[400911965,1767861043200,-500.0,0.00015068,2]
[400911967,1767861043210,-500.0,0.00015068,2]
[400911969,1767861043224,-150.0,0.00015068,2]
[400911971,1767861043235,-150.0,0.00015068,2]
[400911973,1767861043244,-150.0,0.00015068,2]
[400911976,1767861043257,-150.0,0.00015068,2]
[400911978,1767861043267,-150.0,0.00015068,2]
[400911980,1767861043277,-580.07664263,0.00015068,2]
[400911981,1767861043289,-217.19962447,0.00015068,2]
[400911983,1767861043299,-500.88287597,0.00015068,2]
[400911985,1767861043309,-500.0,0.00015068,2]
[400911988,1767861043319,-654.79,0.00015068,2]
[400911990,1767861043330,-640.24385345,0.00015096,2]
[400911992,1767861043342,-175.29912762,0.00015096,2]
[400911994,1767861043352,-263.14162042,0.00015096,2]
[400911996,1767861043363,-505.38896935,0.00015122,2]
[400911998,1767861043373,-500.0,0.00015122,2]
[400912000,1767861043383,-424.51861347,0.00015122,2]
[400912002,1767861043393,-150.0,0.00015122,2]
[400912004,1767861043403,-178.40260868,0.00015122,2]
[400912007,1767861043413,-180.41152158,0.00015122,2]
[400912009,1767861043422,-150.0,0.00015122,2]
[400912011,1767861043431,-152.76998294,0.00015122,2]
[400912013,1767861043444,-500.0,0.00015123,2]
[400912015,1767861043455,-349.62704522,0.00015177,2]
[400912017,1767861043465,-283.00639251,0.00015177,2]
[400912019,1767861043475,-174.74090706,0.00015177,2]
[400912021,1767861043486,-500.0,0.00015178,2]
[400912023,1767861043496,-769.41,0.00015197,2]
[400912025,1767861043507,-15064.07141285,0.00015204,2]
[400912027,1767861043517,-522.31501888,0.00015232,2]
[400912029,1767861043527,-17139.32837656,0.00015246,2]
[400912032,1767861043537,-1517.64,0.000153,2]
[400912034,1767861043547,-500.44132788,0.0001531,2]
[400912036,1767861043556,-1000.0,0.0001531,2]
[400912038,1767861043566,-1000.0,0.0001531,2]
[400912040,1767861043576,-1000.0,0.0001531,2]
[400912042,1767861043585,-712.65120656,0.0001531,2]
[400912044,1767861043595,-1000.0,0.0001531,2]
[400912046,1767861043605,-1000.0,0.0001531,2]
[400912048,1767861043614,-539.89725373,0.0001531,2]
[400912050,1767861043624,-1000.0,0.0001531,2]
[400912053,1767861043634,-1000.0,0.0001531,2]
[400912056,1767861043643,-912.45872532,0.0001531,2]
[400912059,1767861043652,-1000.0,0.0001531,2]
[400912062,1767861043662,-503.33948311,0.0001531,2]
[400912065,1767861043671,-1000.0,0.0001531,2]
[400912068,1767861043681,-332.64752003,0.0001531,2]
[400912071,1767861043691,-1000.0,0.0001531,2]
[400912074,1767861043702,-1000.0,0.0001531,2]
[400912077,1767861043712,-1000.0,0.0001531,2]
[400912080,1767861043723,-166.61911688,0.0001531,2]
[400912083,1767861043734,-1000.0,0.0001531,2]
[400912086,1767861043744,-1000.0,0.0001531,2]
[400912088,1767861043755,-415.93260674,0.0001531,2]
[400912090,1767861043765,-1000.0,0.0001531,2]
[400912092,1767861043775,-1000.0,0.0001531,2]
[400912094,1767861043784,-500.3780208,0.0001531,2]
[400912096,1767861043793,-812.00908556,0.0001531,2]
[400912098,1767861043803,-237.35203595,0.0001531,2]
[400912100,1767861043812,-1000.0,0.0001531,2]
[400912102,1767861043823,-438.84534231,0.0001531,2]
[400912104,1767861043832,-1000.0,0.0001531,2]
[400912106,1767861043842,-1000.0,0.0001531,2]
[400912108,1767861043853,-1000.0,0.0001531,2]
[400912110,1767861043863,-1000.0,0.0001531,2]
[400912112,1767861043872,-1000.0,0.0001531,2]
[400912114,1767861043883,-1619.28,0.00015316,2]
[400912116,1767861043893,-669.73996496,0.00015346,2]
[400912119,1767861043904,-736.0,0.0001537,2]
[400912120,1767861043914,-1619.28,0.0001559,2]
[400912123,1767861043923,-250.0,0.00015635,2]
[400912163,1767861044283,-663.93287602,0.00015644,2]
[400912165,1767861044294,-1594.0,0.00015661,2]
[400912167,1767861044304,-823.0,0.00015661,2]
[400912169,1767861044314,-823.0,0.00015661,2]
[400912171,1767861044324,-3292.0,0.00015748,2]
[400912173,1767861044334,-600.0,0.00015774,2]
[400912175,1767861044343,-312.84,0.00015775,2]
[400912177,1767861044352,-2045.62935019,0.00015807,2]
[400912179,1767861044362,-556.63084022,0.00015858,2]
[400912181,1767861044371,-1009.92734084,0.00015858,2]
[400912183,1767861044381,-1500.0,0.00015858,2]
[400912185,1767861044390,-1500.0,0.00015858,2]
[400912187,1767861044400,-1500.0,0.00015858,2]
[400912189,1767861044409,-1500.0,0.00015858,2]
[400912191,1767861044419,-1500.0,0.00015858,2]
[400912193,1767861044429,-822.81176918,0.00015858,2]
[400912195,1767861044438,-1500.0,0.00015858,2]
[400912197,1767861044448,-413.69875704,0.00015858,2]
[400912199,1767861044458,-1500.0,0.00015858,2]
[400912201,1767861044468,-985.97149483,0.00015858,2]
[400912203,1767861044477,-1500.0,0.00015858,2]
[400912205,1767861044487,-1530.62564826,0.00015858,2]
[400912207,1767861044496,-1500.0,0.00015858,2]
[400912209,1767861044506,-1500.0,0.00015858,2]
[400912211,1767861044515,-1001.84542925,0.00015858,2]
[400912213,1767861044524,-1158.23019616,0.00015858,2]
[400912215,1767861044534,-1500.0,0.00015858,2]
[400912217,1767861044544,-1500.0,0.00015858,2]
[400912219,1767861044553,-1500.0,0.00015858,2]
[400912221,1767861044564,-1500.0,0.00015858,2]
[400912223,1767861044573,-1619.28,0.00015864,2]
[400912225,1767861044583,-15064.07141285,0.00015878,2]
[400912227,1767861044592,-769.41,0.00015888,2]
[400912229,1767861044601,-500.0,0.00015899,2]
[400912231,1767861044610,-395.5390186,0.000159,2]
[400912234,1767861044620,-6005.05797759,0.000159,2]
[400912236,1767861044631,-999.0,0.00015902,3]
[400912238,1767861044640,-17139.32837656,0.0001591,2]
[400912240,1767861044649,-1000.0,0.00015918,2]
[400912242,1767861044658,-192.52,0.0001596,2]
[400912244,1767861044668,-156.0,0.00015973,2]
[400912246,1767861044681,-672.1,0.00015983,2]
[400912248,1767861044691,-200.589792,0.00015997,2]
[400912250,1767861044701,-132779.59344903,0.00016,2]
[400912252,1767861044711,-426455.46622785,0.00016,4]
[400912254,1767861044720,-200.0,0.00016,2]
[400912256,1767861044729,-118094.70840181,0.000161,2]
[400912338,1767861045505,-180648.17636824,0.000161,2]
[400912340,1767861045515,-871.74370939,0.00016113,2]
[400912342,1767861045525,-755.93468828,0.00016113,2]
[400912344,1767861045534,-9999.99,0.00016116,2]
[400912346,1767861045544,-180.0,0.00016128,2]
[400912348,1767861045554,-1619.28,0.00016138,2]
[400912350,1767861045564,-164.07,0.00016152,2]
[400912352,1767861045576,-346.92554585,0.0001619,2]
[400912354,1767861045585,-666.72878,0.0001619,2]
[400912356,1767861045594,-599.60298507,0.00016191,2]
[400912359,1767861045605,-688.49839244,0.00016192,2]
[400912361,1767861045615,-150.0,0.000162,2]
[400912363,1767861045624,-119190.87459697,0.000162,5]
[400912365,1767861045633,-150.0,0.00016246,2]
[400912367,1767861045644,-157.72323008,0.00016277,2]
[400912369,1767861045654,-150.0,0.00016292,2]
[400912371,1767861045663,-395.53901856,0.000163,2]
[400912373,1767861045673,-150.0,0.00016338,2]
[400912375,1767861045683,-200.0,0.0001634,2]
[400912377,1767861045692,-150.0,0.00016385,2]
[400912379,1767861045702,-162.0,0.000164,2]
[400912381,1767861045711,-162.0,0.000164,2]
[400912383,1767861045721,-162.0,0.000164,2]
[400912385,1767861045732,-833.0,0.000164,2]
[400912387,1767861045741,-833.0,0.000164,2]
[400912389,1767861045751,-2000.0,0.00016406,2]
[400912391,1767861045760,-665.71915277,0.00016406,2]
[400912393,1767861045769,-2000.0,0.00016406,2]
[400912395,1767861045779,-2000.0,0.00016406,2]
[400912397,1767861045788,-1133.20600999,0.00016406,2]
[400912399,1767861045797,-2000.0,0.00016406,2]
[400912401,1767861045808,-1004.82287623,0.00016406,2]
[400912402,1767861045817,-453.03832283,0.00016406,2]
[400912403,1767861045827,-2000.0,0.00016406,2]
[400912404,1767861045836,-2000.0,0.00016406,2]
[400912405,1767861045845,-2000.0,0.00016406,2]
[400912406,1767861045854,-2000.0,0.00016406,2]
[400912407,1767861045864,-377.66780599,0.00016406,2]
[400912408,1767861045873,-2000.0,0.00016406,2]
[400912409,1767861045882,-1619.28,0.00016412,2]
[400912410,1767861045891,-150.0,0.00016431,2]
[400912411,1767861045901,-514.77,0.00016437,2]
[400912412,1767861045910,-451.90263959,0.00016437,2]
[400912413,1767861045919,-500.0,0.00016438,2]
[400912414,1767861045929,-654.79,0.00016438,2]
[400912415,1767861045938,-800.0,0.00016438,2]
[400912417,1767861045947,-150.0,0.00016477,2]
[400912419,1767861045957,-500.0,0.00016493,2]
[400912421,1767861045967,-1000.0,0.00016515,2]
[400912423,1767861045977,-150.0,0.00016523,2]
[400912425,1767861045986,-500.0,0.00016548,2]
[400912427,1767861045996,-15064.07141285,0.00016552,2]
[400912429,1767861046007,-150.0,0.00016569,2]
[400912441,1767861046112,-17139.32837656,0.00016573,2]
[400912443,1767861046124,-769.41,0.00016578,2]
[400912445,1767861046134,-195.08159117,0.00016602,2]
[400912447,1767861046143,-150.0,0.00016615,2]
[400912449,1767861046152,-304.30680198,0.00016624,2]
[400912451,1767861046162,-150.0,0.00016662,2]
[400912453,1767861046171,-500.0,0.00016682,2]
[400912455,1767861046182,-500.0,0.00016682,2]
[400912457,1767861046191,-150.0,0.00016682,2]
[400912459,1767861046200,-150.0,0.00016682,2]
[400912461,1767861046210,-1619.28,0.00016685,2]
[400912463,1767861046220,-395.53901856,0.000167,2]
[400912465,1767861046229,-150.0,0.00016708,2]
[400912467,1767861046239,-165.16,0.00016712,2]
[400912469,1767861046248,-833.0,0.0001672,2]
[400912471,1767861046259,-833.0,0.0001672,2]
[400912473,1767861046268,-162.0,0.0001672,2]
[400912475,1767861046278,-833.0,0.0001672,2]
[400912477,1767861046293,-162.0,0.0001672,2]
[400912479,1767861046302,-833.0,0.0001672,2]
[400912481,1767861046311,-162.0,0.0001672,2]
[400912483,1767861046321,-500.0,0.00016737,2]
[400912485,1767861046331,-521.38436778,0.00016737,2]
[400912487,1767861046342,-150.0,0.00016737,2]
[400912489,1767861046360,-164.77040348,0.00016737,2]
[400912491,1767861046379,-713.97283296,0.0001674,2]
[400912493,1767861046399,-150.0,0.00016754,2]